{"text_format":"3","workbook":"xlsx","n_sheets":3,"sheets":["Evidencija pređene kilometraže","Podaci evidencije","Izračunavanja"],"not_rendered":{"charts":1,"defined_names":17},"read":"whole","date_system":"1900"}

{"sheet":"Evidencija pređene kilometraže","index":0,"n_rows":29,"n_cols":5,"rows_kept":29,"merged":[[0,1,1,5]]}
[null,"EVIDENCIJA KILOMETRAŽE"]
{"$rows_empty":9}
[null,null,"ZA NADOKNADU",null,"UKUPNO"]
[null,null,"KILOMETARA",null,"NADOKNADA"]
[]
[]
[]
[]
[null,null,"2012-05-01",null,"2012-05-10"]
[]
[null,null,"PERIOD",null,"PERIOD"]
[null,null,"POČETAK",null,"KRAJ"]
[]
[]
[]
[]
[]
[null,null,54,null,{"v":9800,"d":"9,800"}]
[]
[null,null,"NADOKNADA",null,"PRETHODNO STANJE GORIVA"]
[null,null,"din/kilometar",null,"MERAČ KILOMETRAŽE"]

{"sheet":"Podaci evidencije","index":1,"n_rows":19,"n_cols":15,"rows_kept":19,"merged":[[0,1,1,4]]}
[null,"EVIDENCIJA KILOMETRAŽE"]
[{"$nulls":14}," "]
[]
[]
[null,"DATUM","AKTIVNOST","MERAČ KILOMETRAŽE 1","LOKACIJA","MERAČ KILOMETRAŽE 2","ODREDIŠTE","NADOKNADITI","LITARA","TROŠAK","KILOMETARA","Kilometara po litru","din/kilometar","BELEŠKE"]
[null,"2012-05-01","Vožnja",{"v":10123,"d":"10,123"},"Luk oil – Glavna ulica",{"v":10130,"d":"10,130"},null,null,15.56,{"v":64.11,"d":"64.11 Din."},{"$f":"milje","v":7},{"$f":"IF(OR(LEN(podaci[[#This Row],[MERAČ KILOMETRAŽE 2]]),podaci[[#This Row],[MERAČ KILOMETRAŽE 1]]=\"\"),\"\",IFERROR(podaci[[#This Row],[KILOMETARA]]/podaci[[#This Row],[LITARA]],\"\"))","v":""},{"$f":"IF(podaci[[#This Row],[Kilometara po litru]]=\"\",\"\",100*podaci[[#This Row],[TROŠAK]]/podaci[[#This Row],[KILOMETARA]])","v":""}]
[null,"2012-05-01","Vožnja",{"v":10130,"d":"10,130"},"Kancelarija",{"v":10200,"d":"10,200"},"Ulica trešanja","Da",null,"",{"$f":"milje","v":70},{"$f":"IF(OR(LEN(podaci[[#This Row],[MERAČ KILOMETRAŽE 2]]),podaci[[#This Row],[MERAČ KILOMETRAŽE 1]]=\"\"),\"\",IFERROR(podaci[[#This Row],[KILOMETARA]]/podaci[[#This Row],[LITARA]],\"\"))","v":""},{"$f":"IF(podaci[[#This Row],[Kilometara po litru]]=\"\",\"\",100*podaci[[#This Row],[TROŠAK]]/podaci[[#This Row],[KILOMETARA]])","v":""}]
[null,"2012-05-01","Vožnja",{"v":10200,"d":"10,200"},"Obrenovac",{"v":10285,"d":"10,285"},"Kancelarija","Da",null,"",{"$f":"milje","v":85},{"$f":"IF(OR(LEN(podaci[[#This Row],[MERAČ KILOMETRAŽE 2]]),podaci[[#This Row],[MERAČ KILOMETRAŽE 1]]=\"\"),\"\",IFERROR(podaci[[#This Row],[KILOMETARA]]/podaci[[#This Row],[LITARA]],\"\"))","v":""},{"$f":"IF(podaci[[#This Row],[Kilometara po litru]]=\"\",\"\",100*podaci[[#This Row],[TROŠAK]]/podaci[[#This Row],[KILOMETARA]])","v":""}]
[null,"2012-05-02","Vožnja",{"v":10285,"d":"10,285"},"Kancelarija",{"v":10450,"d":"10,450"},"Kostini vinogradi","Da",null,"",{"$f":"milje","v":165},{"$f":"IF(OR(LEN(podaci[[#This Row],[MERAČ KILOMETRAŽE 2]]),podaci[[#This Row],[MERAČ KILOMETRAŽE 1]]=\"\"),\"\",IFERROR(podaci[[#This Row],[KILOMETARA]]/podaci[[#This Row],[LITARA]],\"\"))","v":""},{"$f":"IF(podaci[[#This Row],[Kilometara po litru]]=\"\",\"\",100*podaci[[#This Row],[TROŠAK]]/podaci[[#This Row],[KILOMETARA]])","v":""}]
[null,"2012-05-02","Gorivo",{"v":10450,"d":"10,450"},"OMV",{"$nulls":3},{"v":11.2,"d":"11.20"},{"v":55.42,"d":"55.42 Din."},{"$f":"milje","v":650},{"$f":"IF(OR(LEN(podaci[[#This Row],[MERAČ KILOMETRAŽE 2]]),podaci[[#This Row],[MERAČ KILOMETRAŽE 1]]=\"\"),\"\",IFERROR(podaci[[#This Row],[KILOMETARA]]/podaci[[#This Row],[LITARA]],\"\"))","v":{"v":58.03571428571429,"d":"58.0"}},{"$f":"IF(podaci[[#This Row],[Kilometara po litru]]=\"\",\"\",100*podaci[[#This Row],[TROŠAK]]/podaci[[#This Row],[KILOMETARA]])","v":{"v":8.526153846153846,"d":"8.5"}}]
[null,"2012-05-02","Vožnja",{"v":10500,"d":"10,500"},"Kostini vinogradi",{"v":10518,"d":"10,518"},"Kancelarija","Da",null,"",{"$f":"milje","v":18},{"$f":"IF(OR(LEN(podaci[[#This Row],[MERAČ KILOMETRAŽE 2]]),podaci[[#This Row],[MERAČ KILOMETRAŽE 1]]=\"\"),\"\",IFERROR(podaci[[#This Row],[KILOMETARA]]/podaci[[#This Row],[LITARA]],\"\"))","v":""},{"$f":"IF(podaci[[#This Row],[Kilometara po litru]]=\"\",\"\",100*podaci[[#This Row],[TROŠAK]]/podaci[[#This Row],[KILOMETARA]])","v":""}]
[null,"2012-05-03","Vožnja",{"v":10518,"d":"10,518"},"Kancelarija",{"v":10745,"d":"10,745"},"Kancelarija","Da",null,"",{"$f":"milje","v":227},{"$f":"IF(OR(LEN(podaci[[#This Row],[MERAČ KILOMETRAŽE 2]]),podaci[[#This Row],[MERAČ KILOMETRAŽE 1]]=\"\"),\"\",IFERROR(podaci[[#This Row],[KILOMETARA]]/podaci[[#This Row],[LITARA]],\"\"))","v":""},{"$f":"IF(podaci[[#This Row],[Kilometara po litru]]=\"\",\"\",100*podaci[[#This Row],[TROŠAK]]/podaci[[#This Row],[KILOMETARA]])","v":""}]
[null,"2012-05-04","Gorivo",{"v":10745,"d":"10,745"},"Luk oil – Glavna ulica",{"$nulls":3},{"v":16.6,"d":"16.60"},{"v":69.24,"d":"69.24 Din."},{"$f":"milje","v":295},{"$f":"IF(OR(LEN(podaci[[#This Row],[MERAČ KILOMETRAŽE 2]]),podaci[[#This Row],[MERAČ KILOMETRAŽE 1]]=\"\"),\"\",IFERROR(podaci[[#This Row],[KILOMETARA]]/podaci[[#This Row],[LITARA]],\"\"))","v":{"v":17.771084337349397,"d":"17.8"}},{"$f":"IF(podaci[[#This Row],[Kilometara po litru]]=\"\",\"\",100*podaci[[#This Row],[TROŠAK]]/podaci[[#This Row],[KILOMETARA]])","v":{"v":23.471186440677965,"d":"23.5"}}]
[null,"2012-05-04","Vožnja",{"v":10745,"d":"10,745"},"Kancelarija",{"v":10800,"d":"10,800"},"Šimanovci","Da",null,"",{"$f":"milje","v":55},{"$f":"IF(OR(LEN(podaci[[#This Row],[MERAČ KILOMETRAŽE 2]]),podaci[[#This Row],[MERAČ KILOMETRAŽE 1]]=\"\"),\"\",IFERROR(podaci[[#This Row],[KILOMETARA]]/podaci[[#This Row],[LITARA]],\"\"))","v":""},{"$f":"IF(podaci[[#This Row],[Kilometara po litru]]=\"\",\"\",100*podaci[[#This Row],[TROŠAK]]/podaci[[#This Row],[KILOMETARA]])","v":""}]
[null,"2012-05-04","Vožnja",{"v":10800,"d":"10,800"},"Šimanovci",{"v":10875,"d":"10,875"},"Kancelarija","Da",null,"",{"$f":"milje","v":75},{"$f":"IF(OR(LEN(podaci[[#This Row],[MERAČ KILOMETRAŽE 2]]),podaci[[#This Row],[MERAČ KILOMETRAŽE 1]]=\"\"),\"\",IFERROR(podaci[[#This Row],[KILOMETARA]]/podaci[[#This Row],[LITARA]],\"\"))","v":""},{"$f":"IF(podaci[[#This Row],[Kilometara po litru]]=\"\",\"\",100*podaci[[#This Row],[TROŠAK]]/podaci[[#This Row],[KILOMETARA]])","v":""}]
[null,"2012-05-07","Vožnja",{"v":10875,"d":"10,875"},"Kancelarija",{"v":10921,"d":"10,921"},"Ulica trešanja","Da",null,"",{"$f":"milje","v":46},{"$f":"IF(OR(LEN(podaci[[#This Row],[MERAČ KILOMETRAŽE 2]]),podaci[[#This Row],[MERAČ KILOMETRAŽE 1]]=\"\"),\"\",IFERROR(podaci[[#This Row],[KILOMETARA]]/podaci[[#This Row],[LITARA]],\"\"))","v":""},{"$f":"IF(podaci[[#This Row],[Kilometara po litru]]=\"\",\"\",100*podaci[[#This Row],[TROŠAK]]/podaci[[#This Row],[KILOMETARA]])","v":""}]
[null,"2012-05-07","Vožnja",{"v":10921,"d":"10,921"},"Obrenovac",{"v":10969,"d":"10,969"},"Kancelarija","Da",null,"",{"$f":"milje","v":48},{"$f":"IF(OR(LEN(podaci[[#This Row],[MERAČ KILOMETRAŽE 2]]),podaci[[#This Row],[MERAČ KILOMETRAŽE 1]]=\"\"),\"\",IFERROR(podaci[[#This Row],[KILOMETARA]]/podaci[[#This Row],[LITARA]],\"\"))","v":""},{"$f":"IF(podaci[[#This Row],[Kilometara po litru]]=\"\",\"\",100*podaci[[#This Row],[TROŠAK]]/podaci[[#This Row],[KILOMETARA]])","v":""}]
[null,"2012-05-09","Vožnja",{"v":10969,"d":"10,969"},"Kancelarija",{"v":11000,"d":"11,000"},"Zemun","Da",null,"",{"$f":"milje","v":31},{"$f":"IF(OR(LEN(podaci[[#This Row],[MERAČ KILOMETRAŽE 2]]),podaci[[#This Row],[MERAČ KILOMETRAŽE 1]]=\"\"),\"\",IFERROR(podaci[[#This Row],[KILOMETARA]]/podaci[[#This Row],[LITARA]],\"\"))","v":""},{"$f":"IF(podaci[[#This Row],[Kilometara po litru]]=\"\",\"\",100*podaci[[#This Row],[TROŠAK]]/podaci[[#This Row],[KILOMETARA]])","v":""}]
[null,"2012-05-09","Vožnja",{"v":11000,"d":"11,000"},"Zemun",{"v":11100,"d":"11,100"},"Kući","Ne",null,"",{"$f":"milje","v":100},{"$f":"IF(OR(LEN(podaci[[#This Row],[MERAČ KILOMETRAŽE 2]]),podaci[[#This Row],[MERAČ KILOMETRAŽE 1]]=\"\"),\"\",IFERROR(podaci[[#This Row],[KILOMETARA]]/podaci[[#This Row],[LITARA]],\"\"))","v":""},{"$f":"IF(podaci[[#This Row],[Kilometara po litru]]=\"\",\"\",100*podaci[[#This Row],[TROŠAK]]/podaci[[#This Row],[KILOMETARA]])","v":""}]

{"sheet":"Izračunavanja","index":2,"n_rows":69,"n_cols":13,"rows_kept":69,"hidden":true}
["*** Ovaj list neka ostane skriven ***"]
[]
[]
[]
[]
[{"$nulls":8},{"$f":"OFFSET(I9,,secondAxis=\"Cena goriva\")","v":"din/kilometar"}]
[{"$nulls":12},2]
[{"$nulls":7},"Vožnja","Gorivo","Gorivo",null,"Druga osa: ",{"$f":"REPT(\"Kilometara po litru\",M7=1)&REPT(\"Cena goriva\",M7=2)","v":"Cena goriva"}]
[{"$nulls":7},"Pređeno kilometara","Kilometara po litru","din/kilometar"]
[null,null,"Kilometraža za nadoknadu: ",{"$f":"SUMIFS(podaci[KILOMETARA],podaci[NADOKNADITI],\"Da\",podaci[DATUM],\">=\"&periodStart,podaci[DATUM],\"<=\"&periodEnd)","v":820},null,1,{"$f":"periodStart","v":"2012-05-01"},{"$f":"SUMIFS(podaci[KILOMETARA],podaci[DATUM],G10,podaci[AKTIVNOST],$H$8)","v":162},{"$f":"IFERROR(AVERAGEIFS(podaci[Kilometara po litru],podaci[DATUM],G10,podaci[AKTIVNOST],$I$8),NA())","v":{"$error":"#N/A"}},{"$f":"IFERROR(AVERAGEIFS(podaci[din/kilometar],podaci[DATUM],G10,podaci[AKTIVNOST],$J$8),NA())","v":{"$error":"#N/A"}}]
[null,null,"Ukupno za nadoknadu: ",{"$f":"D10*ReimbursementPerMile/100","v":{"v":442.8,"d":"442.80 Din."}},null,2,{"$f":"G10+1","v":"2012-05-02"},{"$f":"SUMIFS(podaci[KILOMETARA],podaci[DATUM],G11,podaci[AKTIVNOST],$H$8)","v":183},{"$f":"IFERROR(AVERAGEIFS(podaci[Kilometara po litru],podaci[DATUM],G11,podaci[AKTIVNOST],$I$8),NA())","v":{"v":58.03571428571429,"d":"58.0"}},{"$f":"IFERROR(AVERAGEIFS(podaci[din/kilometar],podaci[DATUM],G11,podaci[AKTIVNOST],$J$8),NA())","v":{"v":8.526153846153846,"d":"8.5"}}]
[{"$nulls":5},3,"2012-05-03",{"$f":"SUMIFS(podaci[KILOMETARA],podaci[DATUM],G12,podaci[AKTIVNOST],$H$8)","v":227},{"$f":"IFERROR(AVERAGEIFS(podaci[Kilometara po litru],podaci[DATUM],G12,podaci[AKTIVNOST],$I$8),NA())","v":{"$error":"#N/A"}},{"$f":"IFERROR(AVERAGEIFS(podaci[din/kilometar],podaci[DATUM],G12,podaci[AKTIVNOST],$J$8),NA())","v":{"$error":"#N/A"}}]
[{"$nulls":5},4,"2012-05-04",{"$f":"SUMIFS(podaci[KILOMETARA],podaci[DATUM],G13,podaci[AKTIVNOST],$H$8)","v":130},{"$f":"IFERROR(AVERAGEIFS(podaci[Kilometara po litru],podaci[DATUM],G13,podaci[AKTIVNOST],$I$8),NA())","v":{"v":17.771084337349397,"d":"17.8"}},{"$f":"IFERROR(AVERAGEIFS(podaci[din/kilometar],podaci[DATUM],G13,podaci[AKTIVNOST],$J$8),NA())","v":{"v":23.471186440677965,"d":"23.5"}}]
[{"$nulls":5},5,"2012-05-05",{"$f":"SUMIFS(podaci[KILOMETARA],podaci[DATUM],G14,podaci[AKTIVNOST],$H$8)","v":0},{"$f":"IFERROR(AVERAGEIFS(podaci[Kilometara po litru],podaci[DATUM],G14,podaci[AKTIVNOST],$I$8),NA())","v":{"$error":"#N/A"}},{"$f":"IFERROR(AVERAGEIFS(podaci[din/kilometar],podaci[DATUM],G14,podaci[AKTIVNOST],$J$8),NA())","v":{"$error":"#N/A"}}]
[{"$nulls":5},6,"2012-05-06",{"$f":"SUMIFS(podaci[KILOMETARA],podaci[DATUM],G15,podaci[AKTIVNOST],$H$8)","v":0},{"$f":"IFERROR(AVERAGEIFS(podaci[Kilometara po litru],podaci[DATUM],G15,podaci[AKTIVNOST],$I$8),NA())","v":{"$error":"#N/A"}},{"$f":"IFERROR(AVERAGEIFS(podaci[din/kilometar],podaci[DATUM],G15,podaci[AKTIVNOST],$J$8),NA())","v":{"$error":"#N/A"}}]
[{"$nulls":5},7,"2012-05-07",{"$f":"SUMIFS(podaci[KILOMETARA],podaci[DATUM],G16,podaci[AKTIVNOST],$H$8)","v":94},{"$f":"IFERROR(AVERAGEIFS(podaci[Kilometara po litru],podaci[DATUM],G16,podaci[AKTIVNOST],$I$8),NA())","v":{"$error":"#N/A"}},{"$f":"IFERROR(AVERAGEIFS(podaci[din/kilometar],podaci[DATUM],G16,podaci[AKTIVNOST],$J$8),NA())","v":{"$error":"#N/A"}}]
[{"$nulls":5},8,"2012-05-08",{"$f":"SUMIFS(podaci[KILOMETARA],podaci[DATUM],G17,podaci[AKTIVNOST],$H$8)","v":0},{"$f":"IFERROR(AVERAGEIFS(podaci[Kilometara po litru],podaci[DATUM],G17,podaci[AKTIVNOST],$I$8),NA())","v":{"$error":"#N/A"}},{"$f":"IFERROR(AVERAGEIFS(podaci[din/kilometar],podaci[DATUM],G17,podaci[AKTIVNOST],$J$8),NA())","v":{"$error":"#N/A"}}]
[{"$nulls":5},9,"2012-05-09",{"$f":"SUMIFS(podaci[KILOMETARA],podaci[DATUM],G18,podaci[AKTIVNOST],$H$8)","v":131},{"$f":"IFERROR(AVERAGEIFS(podaci[Kilometara po litru],podaci[DATUM],G18,podaci[AKTIVNOST],$I$8),NA())","v":{"$error":"#N/A"}},{"$f":"IFERROR(AVERAGEIFS(podaci[din/kilometar],podaci[DATUM],G18,podaci[AKTIVNOST],$J$8),NA())","v":{"$error":"#N/A"}}]
[{"$nulls":5},10,"2012-05-10",{"$f":"SUMIFS(podaci[KILOMETARA],podaci[DATUM],G19,podaci[AKTIVNOST],$H$8)","v":0},{"$f":"IFERROR(AVERAGEIFS(podaci[Kilometara po litru],podaci[DATUM],G19,podaci[AKTIVNOST],$I$8),NA())","v":{"$error":"#N/A"}},{"$f":"IFERROR(AVERAGEIFS(podaci[din/kilometar],podaci[DATUM],G19,podaci[AKTIVNOST],$J$8),NA())","v":{"$error":"#N/A"}}]
[{"$nulls":5},11,"2012-05-11",{"$f":"SUMIFS(podaci[KILOMETARA],podaci[DATUM],G20,podaci[AKTIVNOST],$H$8)","v":0},{"$f":"IFERROR(AVERAGEIFS(podaci[Kilometara po litru],podaci[DATUM],G20,podaci[AKTIVNOST],$I$8),NA())","v":{"$error":"#N/A"}},{"$f":"IFERROR(AVERAGEIFS(podaci[din/kilometar],podaci[DATUM],G20,podaci[AKTIVNOST],$J$8),NA())","v":{"$error":"#N/A"}}]
[{"$nulls":5},12,"2012-05-12",{"$f":"SUMIFS(podaci[KILOMETARA],podaci[DATUM],G21,podaci[AKTIVNOST],$H$8)","v":0},{"$f":"IFERROR(AVERAGEIFS(podaci[Kilometara po litru],podaci[DATUM],G21,podaci[AKTIVNOST],$I$8),NA())","v":{"$error":"#N/A"}},{"$f":"IFERROR(AVERAGEIFS(podaci[din/kilometar],podaci[DATUM],G21,podaci[AKTIVNOST],$J$8),NA())","v":{"$error":"#N/A"}}]
[{"$nulls":5},13,"2012-05-13",{"$f":"SUMIFS(podaci[KILOMETARA],podaci[DATUM],G22,podaci[AKTIVNOST],$H$8)","v":0},{"$f":"IFERROR(AVERAGEIFS(podaci[Kilometara po litru],podaci[DATUM],G22,podaci[AKTIVNOST],$I$8),NA())","v":{"$error":"#N/A"}},{"$f":"IFERROR(AVERAGEIFS(podaci[din/kilometar],podaci[DATUM],G22,podaci[AKTIVNOST],$J$8),NA())","v":{"$error":"#N/A"}}]
[{"$nulls":5},14,"2012-05-14",{"$f":"SUMIFS(podaci[KILOMETARA],podaci[DATUM],G23,podaci[AKTIVNOST],$H$8)","v":0},{"$f":"IFERROR(AVERAGEIFS(podaci[Kilometara po litru],podaci[DATUM],G23,podaci[AKTIVNOST],$I$8),NA())","v":{"$error":"#N/A"}},{"$f":"IFERROR(AVERAGEIFS(podaci[din/kilometar],podaci[DATUM],G23,podaci[AKTIVNOST],$J$8),NA())","v":{"$error":"#N/A"}}]
[{"$nulls":5},15,"2012-05-15",{"$f":"SUMIFS(podaci[KILOMETARA],podaci[DATUM],G24,podaci[AKTIVNOST],$H$8)","v":0},{"$f":"IFERROR(AVERAGEIFS(podaci[Kilometara po litru],podaci[DATUM],G24,podaci[AKTIVNOST],$I$8),NA())","v":{"$error":"#N/A"}},{"$f":"IFERROR(AVERAGEIFS(podaci[din/kilometar],podaci[DATUM],G24,podaci[AKTIVNOST],$J$8),NA())","v":{"$error":"#N/A"}}]
[{"$nulls":5},16,"2012-05-16",{"$f":"SUMIFS(podaci[KILOMETARA],podaci[DATUM],G25,podaci[AKTIVNOST],$H$8)","v":0},{"$f":"IFERROR(AVERAGEIFS(podaci[Kilometara po litru],podaci[DATUM],G25,podaci[AKTIVNOST],$I$8),NA())","v":{"$error":"#N/A"}},{"$f":"IFERROR(AVERAGEIFS(podaci[din/kilometar],podaci[DATUM],G25,podaci[AKTIVNOST],$J$8),NA())","v":{"$error":"#N/A"}}]
[{"$nulls":5},17,"2012-05-17",{"$f":"SUMIFS(podaci[KILOMETARA],podaci[DATUM],G26,podaci[AKTIVNOST],$H$8)","v":0},{"$f":"IFERROR(AVERAGEIFS(podaci[Kilometara po litru],podaci[DATUM],G26,podaci[AKTIVNOST],$I$8),NA())","v":{"$error":"#N/A"}},{"$f":"IFERROR(AVERAGEIFS(podaci[din/kilometar],podaci[DATUM],G26,podaci[AKTIVNOST],$J$8),NA())","v":{"$error":"#N/A"}}]
[{"$nulls":5},18,"2012-05-18",{"$f":"SUMIFS(podaci[KILOMETARA],podaci[DATUM],G27,podaci[AKTIVNOST],$H$8)","v":0},{"$f":"IFERROR(AVERAGEIFS(podaci[Kilometara po litru],podaci[DATUM],G27,podaci[AKTIVNOST],$I$8),NA())","v":{"$error":"#N/A"}},{"$f":"IFERROR(AVERAGEIFS(podaci[din/kilometar],podaci[DATUM],G27,podaci[AKTIVNOST],$J$8),NA())","v":{"$error":"#N/A"}}]
[{"$nulls":5},19,"2012-05-19",{"$f":"SUMIFS(podaci[KILOMETARA],podaci[DATUM],G28,podaci[AKTIVNOST],$H$8)","v":0},{"$f":"IFERROR(AVERAGEIFS(podaci[Kilometara po litru],podaci[DATUM],G28,podaci[AKTIVNOST],$I$8),NA())","v":{"$error":"#N/A"}},{"$f":"IFERROR(AVERAGEIFS(podaci[din/kilometar],podaci[DATUM],G28,podaci[AKTIVNOST],$J$8),NA())","v":{"$error":"#N/A"}}]
[{"$nulls":5},20,"2012-05-20",{"$f":"SUMIFS(podaci[KILOMETARA],podaci[DATUM],G29,podaci[AKTIVNOST],$H$8)","v":0},{"$f":"IFERROR(AVERAGEIFS(podaci[Kilometara po litru],podaci[DATUM],G29,podaci[AKTIVNOST],$I$8),NA())","v":{"$error":"#N/A"}},{"$f":"IFERROR(AVERAGEIFS(podaci[din/kilometar],podaci[DATUM],G29,podaci[AKTIVNOST],$J$8),NA())","v":{"$error":"#N/A"}}]
[{"$nulls":5},21,"2012-05-21",{"$f":"SUMIFS(podaci[KILOMETARA],podaci[DATUM],G30,podaci[AKTIVNOST],$H$8)","v":0},{"$f":"IFERROR(AVERAGEIFS(podaci[Kilometara po litru],podaci[DATUM],G30,podaci[AKTIVNOST],$I$8),NA())","v":{"$error":"#N/A"}},{"$f":"IFERROR(AVERAGEIFS(podaci[din/kilometar],podaci[DATUM],G30,podaci[AKTIVNOST],$J$8),NA())","v":{"$error":"#N/A"}}]
[{"$nulls":5},22,"2012-05-22",{"$f":"SUMIFS(podaci[KILOMETARA],podaci[DATUM],G31,podaci[AKTIVNOST],$H$8)","v":0},{"$f":"IFERROR(AVERAGEIFS(podaci[Kilometara po litru],podaci[DATUM],G31,podaci[AKTIVNOST],$I$8),NA())","v":{"$error":"#N/A"}},{"$f":"IFERROR(AVERAGEIFS(podaci[din/kilometar],podaci[DATUM],G31,podaci[AKTIVNOST],$J$8),NA())","v":{"$error":"#N/A"}}]
[{"$nulls":5},23,"2012-05-23",{"$f":"SUMIFS(podaci[KILOMETARA],podaci[DATUM],G32,podaci[AKTIVNOST],$H$8)","v":0},{"$f":"IFERROR(AVERAGEIFS(podaci[Kilometara po litru],podaci[DATUM],G32,podaci[AKTIVNOST],$I$8),NA())","v":{"$error":"#N/A"}},{"$f":"IFERROR(AVERAGEIFS(podaci[din/kilometar],podaci[DATUM],G32,podaci[AKTIVNOST],$J$8),NA())","v":{"$error":"#N/A"}}]
[{"$nulls":5},24,"2012-05-24",{"$f":"SUMIFS(podaci[KILOMETARA],podaci[DATUM],G33,podaci[AKTIVNOST],$H$8)","v":0},{"$f":"IFERROR(AVERAGEIFS(podaci[Kilometara po litru],podaci[DATUM],G33,podaci[AKTIVNOST],$I$8),NA())","v":{"$error":"#N/A"}},{"$f":"IFERROR(AVERAGEIFS(podaci[din/kilometar],podaci[DATUM],G33,podaci[AKTIVNOST],$J$8),NA())","v":{"$error":"#N/A"}}]
[{"$nulls":5},25,"2012-05-25",{"$f":"SUMIFS(podaci[KILOMETARA],podaci[DATUM],G34,podaci[AKTIVNOST],$H$8)","v":0},{"$f":"IFERROR(AVERAGEIFS(podaci[Kilometara po litru],podaci[DATUM],G34,podaci[AKTIVNOST],$I$8),NA())","v":{"$error":"#N/A"}},{"$f":"IFERROR(AVERAGEIFS(podaci[din/kilometar],podaci[DATUM],G34,podaci[AKTIVNOST],$J$8),NA())","v":{"$error":"#N/A"}}]
[{"$nulls":5},26,"2012-05-26",{"$f":"SUMIFS(podaci[KILOMETARA],podaci[DATUM],G35,podaci[AKTIVNOST],$H$8)","v":0},{"$f":"IFERROR(AVERAGEIFS(podaci[Kilometara po litru],podaci[DATUM],G35,podaci[AKTIVNOST],$I$8),NA())","v":{"$error":"#N/A"}},{"$f":"IFERROR(AVERAGEIFS(podaci[din/kilometar],podaci[DATUM],G35,podaci[AKTIVNOST],$J$8),NA())","v":{"$error":"#N/A"}}]
[{"$nulls":5},27,"2012-05-27",{"$f":"SUMIFS(podaci[KILOMETARA],podaci[DATUM],G36,podaci[AKTIVNOST],$H$8)","v":0},{"$f":"IFERROR(AVERAGEIFS(podaci[Kilometara po litru],podaci[DATUM],G36,podaci[AKTIVNOST],$I$8),NA())","v":{"$error":"#N/A"}},{"$f":"IFERROR(AVERAGEIFS(podaci[din/kilometar],podaci[DATUM],G36,podaci[AKTIVNOST],$J$8),NA())","v":{"$error":"#N/A"}}]
[{"$nulls":5},28,"2012-05-28",{"$f":"SUMIFS(podaci[KILOMETARA],podaci[DATUM],G37,podaci[AKTIVNOST],$H$8)","v":0},{"$f":"IFERROR(AVERAGEIFS(podaci[Kilometara po litru],podaci[DATUM],G37,podaci[AKTIVNOST],$I$8),NA())","v":{"$error":"#N/A"}},{"$f":"IFERROR(AVERAGEIFS(podaci[din/kilometar],podaci[DATUM],G37,podaci[AKTIVNOST],$J$8),NA())","v":{"$error":"#N/A"}}]
[{"$nulls":5},29,"2012-05-29",{"$f":"SUMIFS(podaci[KILOMETARA],podaci[DATUM],G38,podaci[AKTIVNOST],$H$8)","v":0},{"$f":"IFERROR(AVERAGEIFS(podaci[Kilometara po litru],podaci[DATUM],G38,podaci[AKTIVNOST],$I$8),NA())","v":{"$error":"#N/A"}},{"$f":"IFERROR(AVERAGEIFS(podaci[din/kilometar],podaci[DATUM],G38,podaci[AKTIVNOST],$J$8),NA())","v":{"$error":"#N/A"}}]
[{"$nulls":5},30,"2012-05-30",{"$f":"SUMIFS(podaci[KILOMETARA],podaci[DATUM],G39,podaci[AKTIVNOST],$H$8)","v":0},{"$f":"IFERROR(AVERAGEIFS(podaci[Kilometara po litru],podaci[DATUM],G39,podaci[AKTIVNOST],$I$8),NA())","v":{"$error":"#N/A"}},{"$f":"IFERROR(AVERAGEIFS(podaci[din/kilometar],podaci[DATUM],G39,podaci[AKTIVNOST],$J$8),NA())","v":{"$error":"#N/A"}}]
[{"$nulls":5},31,"2012-05-31",{"$f":"SUMIFS(podaci[KILOMETARA],podaci[DATUM],G40,podaci[AKTIVNOST],$H$8)","v":0},{"$f":"IFERROR(AVERAGEIFS(podaci[Kilometara po litru],podaci[DATUM],G40,podaci[AKTIVNOST],$I$8),NA())","v":{"$error":"#N/A"}},{"$f":"IFERROR(AVERAGEIFS(podaci[din/kilometar],podaci[DATUM],G40,podaci[AKTIVNOST],$J$8),NA())","v":{"$error":"#N/A"}}]
[{"$nulls":5},32,"2012-06-01",{"$f":"SUMIFS(podaci[KILOMETARA],podaci[DATUM],G41,podaci[AKTIVNOST],$H$8)","v":0},{"$f":"IFERROR(AVERAGEIFS(podaci[Kilometara po litru],podaci[DATUM],G41,podaci[AKTIVNOST],$I$8),NA())","v":{"$error":"#N/A"}},{"$f":"IFERROR(AVERAGEIFS(podaci[din/kilometar],podaci[DATUM],G41,podaci[AKTIVNOST],$J$8),NA())","v":{"$error":"#N/A"}}]
[{"$nulls":5},33,"2012-06-02",{"$f":"SUMIFS(podaci[KILOMETARA],podaci[DATUM],G42,podaci[AKTIVNOST],$H$8)","v":0},{"$f":"IFERROR(AVERAGEIFS(podaci[Kilometara po litru],podaci[DATUM],G42,podaci[AKTIVNOST],$I$8),NA())","v":{"$error":"#N/A"}},{"$f":"IFERROR(AVERAGEIFS(podaci[din/kilometar],podaci[DATUM],G42,podaci[AKTIVNOST],$J$8),NA())","v":{"$error":"#N/A"}}]
[{"$nulls":5},34,{"$f":"G42+1","v":"2012-06-03"},{"$f":"SUMIFS(podaci[KILOMETARA],podaci[DATUM],G43,podaci[AKTIVNOST],$H$8)","v":0},{"$f":"IFERROR(AVERAGEIFS(podaci[Kilometara po litru],podaci[DATUM],G43,podaci[AKTIVNOST],$I$8),NA())","v":{"$error":"#N/A"}},{"$f":"IFERROR(AVERAGEIFS(podaci[din/kilometar],podaci[DATUM],G43,podaci[AKTIVNOST],$J$8),NA())","v":{"$error":"#N/A"}}]
[{"$nulls":5},35,"2012-06-04",{"$f":"SUMIFS(podaci[KILOMETARA],podaci[DATUM],G44,podaci[AKTIVNOST],$H$8)","v":0},{"$f":"IFERROR(AVERAGEIFS(podaci[Kilometara po litru],podaci[DATUM],G44,podaci[AKTIVNOST],$I$8),NA())","v":{"$error":"#N/A"}},{"$f":"IFERROR(AVERAGEIFS(podaci[din/kilometar],podaci[DATUM],G44,podaci[AKTIVNOST],$J$8),NA())","v":{"$error":"#N/A"}}]
[{"$nulls":5},36,"2012-06-05",{"$f":"SUMIFS(podaci[KILOMETARA],podaci[DATUM],G45,podaci[AKTIVNOST],$H$8)","v":0},{"$f":"IFERROR(AVERAGEIFS(podaci[Kilometara po litru],podaci[DATUM],G45,podaci[AKTIVNOST],$I$8),NA())","v":{"$error":"#N/A"}},{"$f":"IFERROR(AVERAGEIFS(podaci[din/kilometar],podaci[DATUM],G45,podaci[AKTIVNOST],$J$8),NA())","v":{"$error":"#N/A"}}]
[{"$nulls":5},37,"2012-06-06",{"$f":"SUMIFS(podaci[KILOMETARA],podaci[DATUM],G46,podaci[AKTIVNOST],$H$8)","v":0},{"$f":"IFERROR(AVERAGEIFS(podaci[Kilometara po litru],podaci[DATUM],G46,podaci[AKTIVNOST],$I$8),NA())","v":{"$error":"#N/A"}},{"$f":"IFERROR(AVERAGEIFS(podaci[din/kilometar],podaci[DATUM],G46,podaci[AKTIVNOST],$J$8),NA())","v":{"$error":"#N/A"}}]
[{"$nulls":5},38,"2012-06-07",{"$f":"SUMIFS(podaci[KILOMETARA],podaci[DATUM],G47,podaci[AKTIVNOST],$H$8)","v":0},{"$f":"IFERROR(AVERAGEIFS(podaci[Kilometara po litru],podaci[DATUM],G47,podaci[AKTIVNOST],$I$8),NA())","v":{"$error":"#N/A"}},{"$f":"IFERROR(AVERAGEIFS(podaci[din/kilometar],podaci[DATUM],G47,podaci[AKTIVNOST],$J$8),NA())","v":{"$error":"#N/A"}}]
[{"$nulls":5},39,"2012-06-08",{"$f":"SUMIFS(podaci[KILOMETARA],podaci[DATUM],G48,podaci[AKTIVNOST],$H$8)","v":0},{"$f":"IFERROR(AVERAGEIFS(podaci[Kilometara po litru],podaci[DATUM],G48,podaci[AKTIVNOST],$I$8),NA())","v":{"$error":"#N/A"}},{"$f":"IFERROR(AVERAGEIFS(podaci[din/kilometar],podaci[DATUM],G48,podaci[AKTIVNOST],$J$8),NA())","v":{"$error":"#N/A"}}]
[{"$nulls":5},40,"2012-06-09",{"$f":"SUMIFS(podaci[KILOMETARA],podaci[DATUM],G49,podaci[AKTIVNOST],$H$8)","v":0},{"$f":"IFERROR(AVERAGEIFS(podaci[Kilometara po litru],podaci[DATUM],G49,podaci[AKTIVNOST],$I$8),NA())","v":{"$error":"#N/A"}},{"$f":"IFERROR(AVERAGEIFS(podaci[din/kilometar],podaci[DATUM],G49,podaci[AKTIVNOST],$J$8),NA())","v":{"$error":"#N/A"}}]
[{"$nulls":5},41,"2012-06-10",{"$f":"SUMIFS(podaci[KILOMETARA],podaci[DATUM],G50,podaci[AKTIVNOST],$H$8)","v":0},{"$f":"IFERROR(AVERAGEIFS(podaci[Kilometara po litru],podaci[DATUM],G50,podaci[AKTIVNOST],$I$8),NA())","v":{"$error":"#N/A"}},{"$f":"IFERROR(AVERAGEIFS(podaci[din/kilometar],podaci[DATUM],G50,podaci[AKTIVNOST],$J$8),NA())","v":{"$error":"#N/A"}}]
[{"$nulls":5},42,"2012-06-11",{"$f":"SUMIFS(podaci[KILOMETARA],podaci[DATUM],G51,podaci[AKTIVNOST],$H$8)","v":0},{"$f":"IFERROR(AVERAGEIFS(podaci[Kilometara po litru],podaci[DATUM],G51,podaci[AKTIVNOST],$I$8),NA())","v":{"$error":"#N/A"}},{"$f":"IFERROR(AVERAGEIFS(podaci[din/kilometar],podaci[DATUM],G51,podaci[AKTIVNOST],$J$8),NA())","v":{"$error":"#N/A"}}]
[{"$nulls":5},43,"2012-06-12",{"$f":"SUMIFS(podaci[KILOMETARA],podaci[DATUM],G52,podaci[AKTIVNOST],$H$8)","v":0},{"$f":"IFERROR(AVERAGEIFS(podaci[Kilometara po litru],podaci[DATUM],G52,podaci[AKTIVNOST],$I$8),NA())","v":{"$error":"#N/A"}},{"$f":"IFERROR(AVERAGEIFS(podaci[din/kilometar],podaci[DATUM],G52,podaci[AKTIVNOST],$J$8),NA())","v":{"$error":"#N/A"}}]
[{"$nulls":5},44,"2012-06-13",{"$f":"SUMIFS(podaci[KILOMETARA],podaci[DATUM],G53,podaci[AKTIVNOST],$H$8)","v":0},{"$f":"IFERROR(AVERAGEIFS(podaci[Kilometara po litru],podaci[DATUM],G53,podaci[AKTIVNOST],$I$8),NA())","v":{"$error":"#N/A"}},{"$f":"IFERROR(AVERAGEIFS(podaci[din/kilometar],podaci[DATUM],G53,podaci[AKTIVNOST],$J$8),NA())","v":{"$error":"#N/A"}}]
[{"$nulls":5},45,"2012-06-14",{"$f":"SUMIFS(podaci[KILOMETARA],podaci[DATUM],G54,podaci[AKTIVNOST],$H$8)","v":0},{"$f":"IFERROR(AVERAGEIFS(podaci[Kilometara po litru],podaci[DATUM],G54,podaci[AKTIVNOST],$I$8),NA())","v":{"$error":"#N/A"}},{"$f":"IFERROR(AVERAGEIFS(podaci[din/kilometar],podaci[DATUM],G54,podaci[AKTIVNOST],$J$8),NA())","v":{"$error":"#N/A"}}]
[{"$nulls":5},46,"2012-06-15",{"$f":"SUMIFS(podaci[KILOMETARA],podaci[DATUM],G55,podaci[AKTIVNOST],$H$8)","v":0},{"$f":"IFERROR(AVERAGEIFS(podaci[Kilometara po litru],podaci[DATUM],G55,podaci[AKTIVNOST],$I$8),NA())","v":{"$error":"#N/A"}},{"$f":"IFERROR(AVERAGEIFS(podaci[din/kilometar],podaci[DATUM],G55,podaci[AKTIVNOST],$J$8),NA())","v":{"$error":"#N/A"}}]
[{"$nulls":5},47,"2012-06-16",{"$f":"SUMIFS(podaci[KILOMETARA],podaci[DATUM],G56,podaci[AKTIVNOST],$H$8)","v":0},{"$f":"IFERROR(AVERAGEIFS(podaci[Kilometara po litru],podaci[DATUM],G56,podaci[AKTIVNOST],$I$8),NA())","v":{"$error":"#N/A"}},{"$f":"IFERROR(AVERAGEIFS(podaci[din/kilometar],podaci[DATUM],G56,podaci[AKTIVNOST],$J$8),NA())","v":{"$error":"#N/A"}}]
[{"$nulls":5},48,"2012-06-17",{"$f":"SUMIFS(podaci[KILOMETARA],podaci[DATUM],G57,podaci[AKTIVNOST],$H$8)","v":0},{"$f":"IFERROR(AVERAGEIFS(podaci[Kilometara po litru],podaci[DATUM],G57,podaci[AKTIVNOST],$I$8),NA())","v":{"$error":"#N/A"}},{"$f":"IFERROR(AVERAGEIFS(podaci[din/kilometar],podaci[DATUM],G57,podaci[AKTIVNOST],$J$8),NA())","v":{"$error":"#N/A"}}]
[{"$nulls":5},49,"2012-06-18",{"$f":"SUMIFS(podaci[KILOMETARA],podaci[DATUM],G58,podaci[AKTIVNOST],$H$8)","v":0},{"$f":"IFERROR(AVERAGEIFS(podaci[Kilometara po litru],podaci[DATUM],G58,podaci[AKTIVNOST],$I$8),NA())","v":{"$error":"#N/A"}},{"$f":"IFERROR(AVERAGEIFS(podaci[din/kilometar],podaci[DATUM],G58,podaci[AKTIVNOST],$J$8),NA())","v":{"$error":"#N/A"}}]
[{"$nulls":5},50,"2012-06-19",{"$f":"SUMIFS(podaci[KILOMETARA],podaci[DATUM],G59,podaci[AKTIVNOST],$H$8)","v":0},{"$f":"IFERROR(AVERAGEIFS(podaci[Kilometara po litru],podaci[DATUM],G59,podaci[AKTIVNOST],$I$8),NA())","v":{"$error":"#N/A"}},{"$f":"IFERROR(AVERAGEIFS(podaci[din/kilometar],podaci[DATUM],G59,podaci[AKTIVNOST],$J$8),NA())","v":{"$error":"#N/A"}}]
[{"$nulls":5},51,"2012-06-20",{"$f":"SUMIFS(podaci[KILOMETARA],podaci[DATUM],G60,podaci[AKTIVNOST],$H$8)","v":0},{"$f":"IFERROR(AVERAGEIFS(podaci[Kilometara po litru],podaci[DATUM],G60,podaci[AKTIVNOST],$I$8),NA())","v":{"$error":"#N/A"}},{"$f":"IFERROR(AVERAGEIFS(podaci[din/kilometar],podaci[DATUM],G60,podaci[AKTIVNOST],$J$8),NA())","v":{"$error":"#N/A"}}]
[{"$nulls":5},52,"2012-06-21",{"$f":"SUMIFS(podaci[KILOMETARA],podaci[DATUM],G61,podaci[AKTIVNOST],$H$8)","v":0},{"$f":"IFERROR(AVERAGEIFS(podaci[Kilometara po litru],podaci[DATUM],G61,podaci[AKTIVNOST],$I$8),NA())","v":{"$error":"#N/A"}},{"$f":"IFERROR(AVERAGEIFS(podaci[din/kilometar],podaci[DATUM],G61,podaci[AKTIVNOST],$J$8),NA())","v":{"$error":"#N/A"}}]
[{"$nulls":5},53,"2012-06-22",{"$f":"SUMIFS(podaci[KILOMETARA],podaci[DATUM],G62,podaci[AKTIVNOST],$H$8)","v":0},{"$f":"IFERROR(AVERAGEIFS(podaci[Kilometara po litru],podaci[DATUM],G62,podaci[AKTIVNOST],$I$8),NA())","v":{"$error":"#N/A"}},{"$f":"IFERROR(AVERAGEIFS(podaci[din/kilometar],podaci[DATUM],G62,podaci[AKTIVNOST],$J$8),NA())","v":{"$error":"#N/A"}}]
[{"$nulls":5},54,"2012-06-23",{"$f":"SUMIFS(podaci[KILOMETARA],podaci[DATUM],G63,podaci[AKTIVNOST],$H$8)","v":0},{"$f":"IFERROR(AVERAGEIFS(podaci[Kilometara po litru],podaci[DATUM],G63,podaci[AKTIVNOST],$I$8),NA())","v":{"$error":"#N/A"}},{"$f":"IFERROR(AVERAGEIFS(podaci[din/kilometar],podaci[DATUM],G63,podaci[AKTIVNOST],$J$8),NA())","v":{"$error":"#N/A"}}]
[{"$nulls":5},55,"2012-06-24",{"$f":"SUMIFS(podaci[KILOMETARA],podaci[DATUM],G64,podaci[AKTIVNOST],$H$8)","v":0},{"$f":"IFERROR(AVERAGEIFS(podaci[Kilometara po litru],podaci[DATUM],G64,podaci[AKTIVNOST],$I$8),NA())","v":{"$error":"#N/A"}},{"$f":"IFERROR(AVERAGEIFS(podaci[din/kilometar],podaci[DATUM],G64,podaci[AKTIVNOST],$J$8),NA())","v":{"$error":"#N/A"}}]
[{"$nulls":5},56,"2012-06-25",{"$f":"SUMIFS(podaci[KILOMETARA],podaci[DATUM],G65,podaci[AKTIVNOST],$H$8)","v":0},{"$f":"IFERROR(AVERAGEIFS(podaci[Kilometara po litru],podaci[DATUM],G65,podaci[AKTIVNOST],$I$8),NA())","v":{"$error":"#N/A"}},{"$f":"IFERROR(AVERAGEIFS(podaci[din/kilometar],podaci[DATUM],G65,podaci[AKTIVNOST],$J$8),NA())","v":{"$error":"#N/A"}}]
[{"$nulls":5},57,"2012-06-26",{"$f":"SUMIFS(podaci[KILOMETARA],podaci[DATUM],G66,podaci[AKTIVNOST],$H$8)","v":0},{"$f":"IFERROR(AVERAGEIFS(podaci[Kilometara po litru],podaci[DATUM],G66,podaci[AKTIVNOST],$I$8),NA())","v":{"$error":"#N/A"}},{"$f":"IFERROR(AVERAGEIFS(podaci[din/kilometar],podaci[DATUM],G66,podaci[AKTIVNOST],$J$8),NA())","v":{"$error":"#N/A"}}]
[{"$nulls":5},58,"2012-06-27",{"$f":"SUMIFS(podaci[KILOMETARA],podaci[DATUM],G67,podaci[AKTIVNOST],$H$8)","v":0},{"$f":"IFERROR(AVERAGEIFS(podaci[Kilometara po litru],podaci[DATUM],G67,podaci[AKTIVNOST],$I$8),NA())","v":{"$error":"#N/A"}},{"$f":"IFERROR(AVERAGEIFS(podaci[din/kilometar],podaci[DATUM],G67,podaci[AKTIVNOST],$J$8),NA())","v":{"$error":"#N/A"}}]
[{"$nulls":5},59,"2012-06-28",{"$f":"SUMIFS(podaci[KILOMETARA],podaci[DATUM],G68,podaci[AKTIVNOST],$H$8)","v":0},{"$f":"IFERROR(AVERAGEIFS(podaci[Kilometara po litru],podaci[DATUM],G68,podaci[AKTIVNOST],$I$8),NA())","v":{"$error":"#N/A"}},{"$f":"IFERROR(AVERAGEIFS(podaci[din/kilometar],podaci[DATUM],G68,podaci[AKTIVNOST],$J$8),NA())","v":{"$error":"#N/A"}}]
[{"$nulls":5},60,"2012-06-29",{"$f":"SUMIFS(podaci[KILOMETARA],podaci[DATUM],G69,podaci[AKTIVNOST],$H$8)","v":0},{"$f":"IFERROR(AVERAGEIFS(podaci[Kilometara po litru],podaci[DATUM],G69,podaci[AKTIVNOST],$I$8),NA())","v":{"$error":"#N/A"}},{"$f":"IFERROR(AVERAGEIFS(podaci[din/kilometar],podaci[DATUM],G69,podaci[AKTIVNOST],$J$8),NA())","v":{"$error":"#N/A"}}]